[Event "Riga Chess Open 2020"]
[Site "Riga"]
[Date "2020.08.25"]
[Round "2.3"]
[White "Tokranovs, Dmitrijs"]
[Black "Morkunas, Gustas"]
[Result "1-0"]
[ECO "C54"]
[WhiteElo "2212"]
[BlackElo "1660"]
[Annotator "ChessBase"]
[PlyCount "139"]
[EventDate "2020.08.29"]
[EventType "swiss"]
[EventCountry "LAT"]
[SourceTitle "playchess.com"]
[Source "ChessBase"]
[SourceQuality "1"]
[TimeControl "5400+30"]

1. e4 {[%emt 0:02:05]} e5 {[%emt 0:00:00]} 2. Nf3 {[%emt 0:00:04]} Nc6 {[%emt 0:00:00]} 3. Bc4 {[%emt 0:00:05]} Bc5 {[%emt 0:00:00]} 4. c3 {[%emt 0:00:09]} Nf6 {[%emt 0:00:20]} 5. d4 {[%emt 0:00:05]} exd4 {[%emt 0:00:18]} 6. cxd4 {[%emt 0:00:05]} Bb4+ {[%emt 0:00:16]} 7. Bd2 {[%emt 0:00:04]} Nxe4 {[%emt 0:00:27]} 8. Bxb4 {[%emt 0:00:06]} Nxb4 {[%emt 0:00:18]} 9. Bxf7+ {[%emt 0:00:08]} Kxf7 {[%emt 0:00:13]} 10. Qb3+ {[%emt 0:00:05]} d5 {[%emt 0:00:14]} 11. Ne5+ {[%emt 0:00:43]} Ke6 {[%emt 0:00:25]} 12. Qxb4 {[%emt 0:00:07]} Qf8 {[%emt 0:00:23]} 13. Qxf8 {[%emt 0:00:37]} Rxf8 {[%emt 0:00:10]} 14. Nc3 {[%emt 0:00:35]} Nxc3 {[%emt 0:02:53]} 15. bxc3 {[%emt 0:00:07]} Kd6 {[%emt 0:02:02]} 16. f3 {[%emt 0:00:16]} Bf5 {[%emt 0:04:54]} 17. Kf2 {[%emt 0:00:23]} h5 {[%emt 0:03:35]} 18. h4 {[%emt 0:00:16]} Rae8 {[%emt 0:02:55]} 19. Rhe1 {[%emt 0:00:12]} b6 {[%emt 0:02:42]} 20. Re2 {[%emt 0:01:33]} c5 {[%emt 0:05:41]} 21. Rae1 {[%emt 0:02:01]} Re6 {[%emt 0:01:59]} 22. a4 {[%emt 0:02:49]} Rfe8 {[%emt 0:10:46]} 23. Kg3 {[%emt 0:02:38]} Kc7 {[%emt 0:05:32]} 24. Kf4 {[%emt 0:01:44]} Bd3 {[%emt 0:02:36]} 25. Rd2 {[%emt 0:00:42]} Rf6+ {[%emt 0:05:03]} 26. Kg3 {[%emt 0:00:34]} Bc4 {[%emt 0:01:23]} 27. Rb1 {[%emt 0:04:14]} Ba6 {[%emt 0:03:19]} 28. a5 {[%emt 0:02:38]} bxa5 {[%emt 0:12:21]} 29. Ra2 {[%emt 0:01:46]} Rb6 {[%emt 0:02:01]} 30. Rba1 {[%emt 0:00:15]} cxd4 {[%emt 0:00:32]} 31. cxd4 {[%emt 0:00:04]} Bb5 {[%emt 0:01:11]} 32. Rxa5 {[%emt 0:00:16]} a6 {[%emt 0:00:08]} 33. Rc1+ {[%emt 0:00:51]} Kb7 {[%emt 0:01:48]} 34. Rc5 {[%emt 0:00:53]} Rd6 {[%emt 0:00:14]} 35. Kf4 {[%emt 0:01:21]} Rf8+ {[%emt 0:04:46]} 36. Kg5 {[%emt 0:02:28]} Rdf6 {[%emt 0:05:38]} 37. Raxb5+ {[%emt 0:05:44]} axb5 {[%emt 0:02:11]} 38. Rxb5+ {[%emt 0:00:34]} Kc7 {[%emt 0:00:25]} 39. Kxh5 {[%emt 0:03:30]} Rd8 {[%emt 0:01:44]} 40. Kg5 {[%emt 0:00:29]} Ra6 {[%emt 0:01:09]} 41. Rc5+ {[%emt 0:01:42]} Kb7 {[%emt 0:00:26]} 42. Rc2 {[%emt 0:00:57]} Ra4 {[%emt 0:00:34]} 43. g4 {[%emt 0:00:50]} Rd6 {[%emt 0:00:37]} 44. Rd2 {[%emt 0:00:10]} Kb6 {[%emt 0:00:13]} 45. f4 {[%emt 0:00:52]} Ka5 {[%emt 0:00:57]} 46. f5 {[%emt 0:00:54]} Kb4 {[%emt 0:00:22]} 47. Rd3 {[%emt 0:02:39]} Ra1 {[%emt 0:02:33]} 48. h5 {[%emt 0:00:19]} Rf1 {[%emt 0:01:20]} 49. Re3 {[%emt 0:01:46]} Ra6 {[%emt 0:01:13]} 50. Ng6 {[%emt 0:04:30]} Ra7 {[%emt 0:03:01]} 51. Nf4 {[%emt 0:00:35]} Kc4 {[%emt 0:00:40]} 52. Ne6 {[%emt 0:00:11]} Rg1 {[%emt 0:00:50]} 53. Rf3 {[%emt 0:00:26]} Re7 {[%emt 0:01:08]} 54. Ra3 {[%emt 0:00:31]} Re1 {[%emt 0:00:45]} 55. Ra4+ {[%emt 0:00:13]} Kd3 {[%emt 0:02:04]} 56. Nf4+ {[%emt 0:00:18]} Ke4 {[%emt 0:00:09]} 57. Ne6 {[%emt 0:01:05]} Kf3 {[%emt 0:00:46]} 58. Ra3+ {[%emt 0:00:45]} Ke4 {[%emt 0:01:05]} 59. Kg6 {[%emt 0:03:50]} Rg1 {[%emt 0:01:27]} 60. g5 {[%emt 0:00:24]} Rg2 {[%emt 0:00:45]} 61. Ra1 {[%emt 0:00:35]} Kf3 {[%emt 0:01:15]} 62. Rh1 {[%emt 0:01:29]} Kg4 {[%emt 0:01:31]} 63. Nxg7 {[%emt 0:00:28]} Rxg7+ {[%emt 0:00:23]} 64. Kxg7 {[%emt 0:00:04]} Kxg5 {[%emt 0:00:10]} 65. f6 {[%emt 0:00:04]} Kf5+ {[%emt 0:00:16]} 66. Kf7 {[%emt 0:00:03]} Ra2 {[%emt 0:00:41]} 67. Rf1+ {[%emt 0:00:03]} Kg5 {[%emt 0:00:18]} 68. Kg7 {[%emt 0:00:11]} Kxh5 {[%emt 0:01:00]} 69. f7 {[%emt 0:00:04]} Rg2+ {[%emt 0:00:13]} 70. Kh7 {[%emt 0:00:14]} 1-0

[Event "Riga Chess Open 2020"]
[Site "Riga"]
[Date "2020.08.25"]
[Round "2.4"]
[White "Jakobsons, Andris"]
[Black "Katishonok, Nikolaj"]
[Result "0-1"]
[ECO "B00"]
[WhiteElo "1668"]
[BlackElo "2118"]
[Annotator "ChessBase"]
[PlyCount "78"]
[EventDate "2020.08.29"]
[EventType "swiss"]
[EventCountry "LAT"]
[SourceTitle "playchess.com"]
[Source "ChessBase"]
[SourceQuality "1"]
[TimeControl "5400+30"]

1. e4 {[%emt 0:00:00]} Nc6 {[%emt 0:00:00]} 2. d4 {[%emt 0:00:23]} d5 {[%emt 0:00:00]} 3. e5 {[%emt 0:00:19]} Bf5 {[%emt 0:00:00]} 4. c3 {[%emt 0:00:16]} Qd7 {[%emt 0:00:30]} 5. Bd3 {[%emt 0:01:09]} f6 {[%emt 0:00:10]} 6. Qh5+ {[%emt 0:16:26]} g6 {[%emt 0:00:51]} 7. Bxf5 {[%emt 0:00:13]} Qxf5 {[%emt 0:00:42]} 8. Qxf5 {[%emt 0:00:11]} gxf5 {[%emt 0:00:07]} 9. f4 {[%emt 0:01:15]} fxe5 {[%emt 0:04:53]} 10. fxe5 {[%emt 0:01:17]} Bh6 {[%emt 0:00:08]} 11. Ne2 {[%emt 0:05:56]} Bxc1 {[%emt 0:04:41]} 12. Nxc1 {[%emt 0:00:03]} Nd8 {[%emt 0:00:35]} 13. O-O {[%emt 0:04:35]} Nh6 {[%emt 0:00:09]} 14. Nd3 {[%emt 0:02:52]} Ne6 {[%emt 0:00:10]} 15. Nf4 {[%emt 0:06:26]} Nxf4 {[%emt 0:00:19]} 16. Rxf4 {[%emt 0:00:02]} a5 {[%emt 0:04:55]} 17. Na3 {[%emt 0:06:34]} Rg8 {[%emt 0:06:10]} 18. Nc2 {[%emt 0:03:30]} e6 {[%emt 0:02:11]} 19. Ne1 {[%emt 0:11:45]} Rg4 {[%emt 0:01:21]} 20. Nd3 {[%emt 0:00:33]} Ke7 {[%emt 0:04:39]} 21. Raf1 {[%emt 0:04:23]} Rag8 {[%emt 0:04:16]} 22. Rxg4 {[%emt 0:02:52]} Rxg4 {[%emt 0:04:29]} 23. Nf4 {[%emt 0:01:42]} Nf7 {[%emt 0:01:36]} 24. Nh5 {[%emt 0:02:21]} h6 {[%emt 0:17:04]} 25. Nf6 {[%emt 0:01:43]} Rg7 {[%emt 0:01:17]} 26. Nh5 {[%emt 0:04:54]} Rg8 {[%emt 0:01:59]} 27. Nf6 {[%emt 0:00:05]} Rc8 {[%emt 0:03:11]} 28. Kf2 {[%emt 0:02:44]} c5 {[%emt 0:00:45]} 29. Ke3 {[%emt 0:00:10]} a4 {[%emt 0:06:40]} 30. Kd3 {[%emt 0:02:46]} Ng5 {[%emt 0:09:17]} 31. b3 {[%emt 0:08:02]} Ne4 {[%emt 0:06:34]} 32. Nxe4 {[%emt 0:00:31]} dxe4+ {[%emt 0:00:11]} 33. Kc4 {[%emt 0:01:55]} cxd4+ {[%emt 0:00:52]} 34. Kxd4 {[%emt 0:00:01]} axb3 {[%emt 0:02:05]} 35. axb3 {[%emt 0:01:20]} Rd8+ {[%emt 0:00:05]} 36. Kc4 {[%emt 0:00:23]} Rd2 {[%emt 0:02:05]} 37. Rf4 {[%emt 0:01:00]} Rxg2 {[%emt 0:02:12]} 38. Rh4 {[%emt 0:00:14]} Rd2 {[%emt 0:01:18]} 39. Rxh6 {[%emt 0:01:44]} e3 {[%emt 0:00:49]} 0-1

[Event "Riga Chess Open 2020"]
[Site "Riga"]
[Date "2020.08.25"]
[Round "3.1"]
[White "Alipovs, Anatolijs"]
[Black "Krivonosov, Oleg"]
[Result "0-1"]
[ECO "C84"]
[WhiteElo "1789"]
[BlackElo "2381"]
[Annotator "ChessBase"]
[PlyCount "68"]
[EventDate "2020.08.29"]
[EventType "swiss"]
[EventCountry "LAT"]
[SourceTitle "playchess.com"]
[Source "ChessBase"]
[SourceQuality "1"]
[TimeControl "5400+30"]

1. e4 {[%emt 0:00:00]} e5 {[%emt 0:00:00]} 2. Nf3 {[%emt 0:00:05]} Nc6 {[%emt 0:00:00]} 3. Bb5 {[%emt 0:01:02]} a6 {[%emt 0:00:20]} 4. Ba4 {[%emt 0:00:26]} Nf6 {[%emt 0:00:08]} 5. O-O {[%emt 0:00:45]} Be7 {[%emt 0:00:07]} 6. d3 {[%emt 0:04:06]} b5 {[%emt 0:00:44]} 7. Bb3 {[%emt 0:00:12]} d6 {[%emt 0:01:44]} 8. a4 {[%emt 0:02:22]} Bb7 {[%emt 0:00:55]} 9. Bd2 {[%emt 0:02:13]} O-O {[%emt 0:00:51]} 10. Nc3 {[%emt 0:01:16]} Nd4 {[%emt 0:03:36]} 11. axb5 {[%emt 0:03:27]} Nxb3 {[%emt 0:01:19]} 12. cxb3 {[%emt 0:00:22]} axb5 {[%emt 0:00:30]} 13. Qc2 {[%emt 0:05:55]} Qd7 {[%emt 0:01:02]} 14. h3 {[%emt 0:00:51]} h6 {[%emt 0:00:20]} 15. Rac1 {[%emt 0:01:56]} Rfe8 {[%emt 0:00:35]} 16. Ne2 {[%emt 0:01:09]} c6 {[%emt 0:00:39]} 17. Ng3 {[%emt 0:00:31]} Bf8 {[%emt 0:00:11]} 18. Rfe1 {[%emt 0:02:02]} c5 {[%emt 0:06:03]} 19. b4 {[%emt 0:01:31]} Rac8 {[%emt 0:02:48]} 20. Qb3 {[%emt 0:02:40]} c4 {[%emt 0:03:51]} 21. Qc2 {[%emt 0:04:47]} d5 {[%emt 0:05:10]} 22. exd5 {[%emt 0:02:39]} Qxd5 {[%emt 0:00:33]} 23. dxc4 {[%emt 0:03:30]} Rxc4 {[%emt 0:00:50]} 24. Qf5 {[%emt 0:02:44]} Bc8 {[%emt 0:02:56]} 25. Rxe5 {[%emt 0:04:52]} Rxc1+ {[%emt 0:00:30]} 26. Kh2 {[%emt 0:02:47]} Rxe5 {[%emt 0:01:15]} 27. Qxe5 {[%emt 0:00:58]} Qxe5 {[%emt 0:00:15]} 28. Nxe5 {[%emt 0:00:22]} Rc2 {[%emt 0:00:11]} 29. Bc3 {[%emt 0:01:51]} Rxf2 {[%emt 0:00:35]} 30. Nd3 {[%emt 0:01:02]} Rc2 {[%emt 0:00:17]} 31. Ne1 {[%emt 0:01:12]} Rc1 {[%emt 0:00:15]} 32. Ne2 {[%emt 0:01:33]} Rd1 {[%emt 0:00:46]} 33. Nc2 {[%emt 0:04:57]} Bd6+ {[%emt 0:00:41]} 34. g3 {[%emt 0:00:39]} Bb7 {[%emt 0:00:43]} 0-1

[Event "Riga Chess Open 2020"]
[Site "Riga"]
[Date "2020.08.25"]
[Round "3.3"]
[White "Katishonok, Nikolaj"]
[Black "Vizulis, Alfreds"]
[Result "1-0"]
[ECO "A00"]
[WhiteElo "2118"]
[BlackElo "1249"]
[Annotator "ChessBase"]
[PlyCount "44"]
[EventDate "2020.08.29"]
[EventType "swiss"]
[EventCountry "LAT"]
[SourceTitle "playchess.com"]
[Source "ChessBase"]
[SourceQuality "1"]
[TimeControl "5400+30"]

1. h4 {[%emt 0:00:00]} e5 {[%emt 0:00:06]} 2. h5 {[%emt 0:00:00]} h6 {[%emt 0:00:25]} 3. d4 {[%emt 0:08:01]} exd4 {[%emt 0:02:06]} 4. Nf3 {[%emt 0:01:27]} c5 {[%emt 0:01:11]} 5. c3 {[%emt 0:01:57]} dxc3 {[%emt 0:00:53]} 6. Nxc3 {[%emt 0:00:07]} Nf6 {[%emt 0:02:38]} 7. e4 {[%emt 0:00:16]} Nc6 {[%emt 0:02:05]} 8. Bf4 {[%emt 0:03:24]} Be7 {[%emt 0:04:52]} 9. Qd2 {[%emt 0:04:13]} a6 {[%emt 0:01:02]} 10. Rd1 {[%emt 0:04:08]} b5 {[%emt 0:01:11]} 11. e5 {[%emt 0:00:07]} b4 {[%emt 0:12:39]} 12. Na4 {[%emt 0:07:57]} Nh7 {[%emt 0:05:54]} 13. Qc2 {[%emt 0:06:57]} Nf8 {[%emt 0:02:39]} 14. Nxc5 {[%emt 0:03:24]} Bxc5 {[%emt 0:00:53]} 15. Qxc5 {[%emt 0:00:05]} Ne6 {[%emt 0:00:24]} 16. Qc4 {[%emt 0:03:25]} Nxf4 {[%emt 0:02:44]} 17. Qxf4 {[%emt 0:01:53]} O-O {[%emt 0:01:20]} 18. Bd3 {[%emt 0:06:08]} f5 {[%emt 0:08:12]} 19. Bxf5 {[%emt 0:06:28]} Ne7 {[%emt 0:01:58]} 20. Qc4+ {[%emt 0:00:56]} Kh8 {[%emt 0:01:00]} 21. Bb1 {[%emt 0:02:29]} Qa5 {[%emt 0:05:38]} 22. Qe4 {[%emt 0:03:14]} Kg8 {[%emt 0:00:58]} 1-0

[Event "Riga Chess Open 2020"]
[Site "Riga"]
[Date "2020.08.25"]
[Round "3.4"]
[White "Stabulnieks, Klavs"]
[Black "Aminovs, Maksims"]
[Result "1-0"]
[ECO "A40"]
[WhiteElo "2214"]
[BlackElo "1613"]
[Annotator "ChessBase"]
[PlyCount "39"]
[EventDate "2020.08.29"]
[EventType "swiss"]
[EventCountry "LAT"]
[SourceTitle "playchess.com"]
[Source "ChessBase"]
[SourceQuality "1"]
[TimeControl "5400+30"]

1. d4 {[%emt 0:00:00]} g6 {[%emt 0:00:08]} 2. c4 {[%emt 0:00:00]} Bg7 {[%emt 0:00:04]} 3. Nc3 {[%emt 0:00:00]} c5 {[%emt 0:00:03]} 4. d5 {[%emt 0:00:00]} Bxc3+ {[%emt 0:00:32]} 5. bxc3 {[%emt 0:00:00]} Qa5 {[%emt 0:00:10]} 6. e4 {[%emt 0:04:05]} Qxc3+ {[%emt 0:04:38]} 7. Bd2 {[%emt 0:00:06]} Qa3 {[%emt 0:08:32]} 8. Ne2 {[%emt 0:03:49]} d6 {[%emt 0:05:32]} 9. Nc3 {[%emt 0:01:01]} Bd7 {[%emt 0:02:59]} 10. Be2 {[%emt 0:01:45]} Nf6 {[%emt 0:06:42]} 11. O-O {[%emt 0:00:50]} Na6 {[%emt 0:07:38]} 12. f4 {[%emt 0:02:00]} O-O-O {[%emt 0:01:40]} 13. Rb1 {[%emt 0:02:35]} Nc7 {[%emt 0:09:15]} 14. e5 {[%emt 0:00:30]} Nfe8 {[%emt 0:00:41]} 15. Rf3 {[%emt 0:08:22]} Qa6 {[%emt 0:06:15]} 16. Nb5 {[%emt 0:04:16]} Nxb5 {[%emt 0:08:39]} 17. cxb5 {[%emt 0:00:07]} Qb6 {[%emt 0:04:32]} 18. Ra3 {[%emt 0:01:00]} Kb8 {[%emt 0:04:39]} 19. Ba5 {[%emt 0:00:17]} c4+ {[%emt 0:00:09]} 20. Bxb6 {[%emt 0:00:04]} 1-0

[Event "Riga Chess Open 2020"]
[Site "Riga"]
[Date "2020.08.26"]
[Round "4.1"]
[White "Krivonosov, Oleg"]
[Black "Katishonok, Nikolaj"]
[Result "1/2-1/2"]
[ECO "D13"]
[WhiteElo "2381"]
[BlackElo "2118"]
[Annotator "ChessBase"]
[PlyCount "148"]
[EventDate "2020.08.29"]
[EventType "swiss"]
[EventCountry "LAT"]
[SourceTitle "playchess.com"]
[Source "ChessBase"]
[SourceQuality "1"]
[TimeControl "5400+30"]

1. Nf3 {[%emt 0:00:00]} d5 {[%emt 0:00:00]} 2. d4 {[%emt 0:00:00]} Nf6 {[%emt 0:00:12]} 3. c4 {[%emt 0:00:42]} c6 {[%emt 0:00:19]} 4. cxd5 {[%emt 0:00:53]} cxd5 {[%emt 0:00:31]} 5. Nc3 {[%emt 0:00:04]} Nc6 {[%emt 0:00:18]} 6. Bf4 {[%emt 0:00:13]} Nh5 {[%emt 0:00:15]} 7. Bd2 {[%emt 0:00:17]} Nf6 {[%emt 0:00:09]} 8. e3 {[%emt 0:00:14]} a6 {[%emt 0:02:55]} 9. Bd3 {[%emt 0:01:38]} Bg4 {[%emt 0:02:27]} 10. h3 {[%emt 0:01:53]} Bh5 {[%emt 0:00:22]} 11. Qb3 {[%emt 0:01:35]} Bxf3 {[%emt 0:02:34]} 12. gxf3 {[%emt 0:00:35]} e6 {[%emt 0:01:37]} 13. Na4 {[%emt 0:02:39]} b5 {[%emt 0:19:44]} 14. Rc1 {[%emt 0:09:16]} Na5 {[%emt 0:04:31]} 15. Bxa5 {[%emt 0:01:22]} Qxa5+ {[%emt 0:00:11]} 16. Nc3 {[%emt 0:00:05]} Be7 {[%emt 0:04:24]} 17. a4 {[%emt 0:02:19]} b4 {[%emt 0:12:43]} 18. Ne2 {[%emt 0:02:57]} O-O {[%emt 0:00:06]} 19. O-O {[%emt 0:00:54]} Rfc8 {[%emt 0:01:49]} 20. Rc2 {[%emt 0:01:03]} Qb6 {[%emt 0:05:38]} 21. Rfc1 {[%emt 0:02:26]} Qb7 {[%emt 0:00:04]} 22. a5 {[%emt 0:05:27]} Ne8 {[%emt 0:01:58]} 23. Nc3 {[%emt 0:03:11]} Bd8 {[%emt 0:02:56]} 24. Na4 {[%emt 0:02:07]} Rxc2 {[%emt 0:04:05]} 25. Qxc2 {[%emt 0:04:50]} Bxa5 {[%emt 0:00:32]} 26. Qc6 {[%emt 0:00:22]} Qxc6 {[%emt 0:02:46]} 27. Rxc6 {[%emt 0:00:12]} Bd8 {[%emt 0:00:20]} 28. Bxa6 {[%emt 0:03:21]} Kf8 {[%emt 0:00:26]} 29. b3 {[%emt 0:03:31]} Ke7 {[%emt 0:00:14]} 30. Kf1 {[%emt 0:03:35]} Ra7 {[%emt 0:01:17]} 31. Bd3 {[%emt 0:00:47]} Rc7 {[%emt 0:01:02]} 32. Ra6 {[%emt 0:00:34]} Rc1+ {[%emt 0:04:40]} 33. Ke2 {[%emt 0:04:11]} Rh1 {[%emt 0:00:59]} 34. Ra7+ {[%emt 0:01:14]} Nc7 {[%emt 0:05:16]} 35. Rb7 {[%emt 0:21:00]} Rxh3 {[%emt 0:00:07]} 36. Rxb4 {[%emt 0:00:26]} Rh1 {[%emt 0:00:05]} 37. Rb8 {[%emt 0:00:45]} h5 {[%emt 0:00:51]} 38. Nc5 {[%emt 0:00:22]} Ne8 {[%emt 0:02:01]} 39. Rb7+ {[%emt 0:01:25]} Nc7 {[%emt 0:02:55]} 40. Rb8 {[%emt 0:03:12]} Ne8 {[%emt 0:00:30]} 41. Nb7 {[%emt 0:05:17]} Bc7 {[%emt 0:02:33]} 42. Rc8 {[%emt 0:00:14]} Kd7 {[%emt 0:00:23]} 43. Ra8 {[%emt 0:00:12]} Nd6 {[%emt 0:02:55]} 44. Nc5+ {[%emt 0:00:23]} Ke7 {[%emt 0:01:02]} 45. Ra7 {[%emt 0:02:27]} Kd8 {[%emt 0:00:07]} 46. Na6 {[%emt 0:01:30]} Bb6 {[%emt 0:04:05]} 47. Ra8+ {[%emt 0:00:22]} Ke7 {[%emt 0:01:04]} 48. Rb8 {[%emt 0:03:09]} Ba7 {[%emt 0:02:30]} 49. Rh8 {[%emt 0:02:11]} g6 {[%emt 0:00:08]} 50. b4 {[%emt 0:00:36]} h4 {[%emt 0:01:37]} 51. b5 {[%emt 0:01:17]} Kf6 {[%emt 0:00:19]} 52. Rh7 {[%emt 0:00:33]} g5 {[%emt 0:01:47]} 53. Nc5 {[%emt 0:02:29]} Ke7 {[%emt 0:01:07]} 54. Rh5 {[%emt 0:00:52]} Rg1 {[%emt 0:00:43]} 55. e4 {[%emt 0:01:14]} Bb6 {[%emt 0:00:45]} 56. e5 {[%emt 0:00:27]} Nc4 {[%emt 0:00:32]} 57. f4 {[%emt 0:01:19]} gxf4 {[%emt 0:00:44]} 58. Rxh4 {[%emt 0:00:52]} Nxe5 {[%emt 0:00:38]} 59. Rxf4 {[%emt 0:00:56]} Ra1 {[%emt 0:00:56]} 60. Bh7 {[%emt 0:00:49]} Ra2+ {[%emt 0:00:20]} 61. Kf1 {[%emt 0:00:19]} Ng6 {[%emt 0:01:04]} 62. Bxg6 {[%emt 0:00:32]} fxg6 {[%emt 0:00:04]} 63. Rg4 {[%emt 0:00:12]} Rb2 {[%emt 0:00:12]} 64. Nxe6 {[%emt 0:00:29]} Rxb5 {[%emt 0:00:21]} 65. Rxg6 {[%emt 0:00:17]} Rb4 {[%emt 0:00:27]} 66. Nc5 {[%emt 0:00:51]} Ba5 {[%emt 0:01:24]} 67. Re6+ {[%emt 0:00:50]} Kf7 {[%emt 0:00:18]} 68. Ra6 {[%emt 0:00:21]} Bd8 {[%emt 0:00:49]} 69. Ra7+ {[%emt 0:01:05]} Be7 {[%emt 0:00:46]} 70. Nd7 {[%emt 0:00:42]} Ke6 {[%emt 0:00:42]} 71. Ne5 {[%emt 0:00:22]} Bf6 {[%emt 0:00:10]} 72. Nc6 {[%emt 0:00:36]} Rb6 {[%emt 0:00:38]} 73. Ne5 {[%emt 0:00:19]} Bxe5 {[%emt 0:00:14]} 74. dxe5 {[%emt 0:00:01]} Kxe5 {[%emt 0:00:08]} 1/2-1/2

[Event "Riga Chess Open 2020"]
[Site "Riga"]
[Date "2020.08.26"]
[Round "4.2"]
[White "Tokranovs, Dmitrijs"]
[Black "Melderis, Uldis"]
[Result "0-1"]
[ECO "A05"]
[WhiteElo "2212"]
[BlackElo "1889"]
[Annotator "ChessBase"]
[PlyCount "96"]
[EventDate "2020.08.29"]
[EventType "swiss"]
[EventCountry "LAT"]
[SourceTitle "playchess.com"]
[Source "ChessBase"]
[SourceQuality "1"]
[TimeControl "5400+30"]

1. Nf3 {[%emt 0:13:55]} Nf6 {[%emt 0:00:00]} 2. b3 {[%emt 0:00:07]} b6 {[%emt 0:00:00]} 3. Bb2 {[%emt 0:00:06]} Bb7 {[%emt 0:00:00]} 4. c4 {[%emt 0:00:14]} Bxf3 {[%emt 0:00:07]} 5. exf3 {[%emt 0:01:03]} e6 {[%emt 0:00:08]} 6. Be2 {[%emt 0:01:54]} d5 {[%emt 0:00:07]} 7. O-O {[%emt 0:00:08]} d4 {[%emt 0:00:19]} 8. f4 {[%emt 0:00:42]} a5 {[%emt 0:01:03]} 9. Bf3 {[%emt 0:00:23]} Ra7 {[%emt 0:00:24]} 10. d3 {[%emt 0:01:57]} Be7 {[%emt 0:00:24]} 11. Nd2 {[%emt 0:00:49]} O-O {[%emt 0:00:12]} 12. Re1 {[%emt 0:00:21]} c5 {[%emt 0:00:42]} 13. Nf1 {[%emt 0:00:46]} Bd6 {[%emt 0:00:37]} 14. Bc1 {[%emt 0:00:52]} Qc7 {[%emt 0:01:16]} 15. g3 {[%emt 0:00:07]} Nc6 {[%emt 0:00:22]} 16. Bg2 {[%emt 0:00:34]} a4 {[%emt 0:00:38]} 17. bxa4 {[%emt 0:02:47]} Rfa8 {[%emt 0:00:54]} 18. Rb1 {[%emt 0:01:29]} Rxa4 {[%emt 0:00:28]} 19. a3 {[%emt 0:00:08]} R4a5 {[%emt 0:01:35]} 20. Qf3 {[%emt 0:00:55]} Rc8 {[%emt 0:00:53]} 21. g4 {[%emt 0:01:12]} Ne7 {[%emt 0:01:07]} 22. g5 {[%emt 0:08:37]} Ne8 {[%emt 0:00:37]} 23. Bh3 {[%emt 0:03:48]} Nf5 {[%emt 0:04:13]} 24. Ng3 {[%emt 0:03:27]} Nxg3 {[%emt 0:03:37]} 25. hxg3 {[%emt 0:00:29]} g6 {[%emt 0:01:55]} 26. Qg4 {[%emt 0:01:08]} b5 {[%emt 0:04:10]} 27. Rxe6 {[%emt 0:07:19]} Rb8 {[%emt 0:04:06]} 28. Re1 {[%emt 0:01:29]} bxc4 {[%emt 0:00:13]} 29. Rxb8 {[%emt 0:00:06]} Qxb8 {[%emt 0:00:06]} 30. dxc4 {[%emt 0:00:19]} Ng7 {[%emt 0:00:21]} 31. Qd7 {[%emt 0:02:22]} Ra7 {[%emt 0:00:53]} 32. Qc6 {[%emt 0:00:19]} Bf8 {[%emt 0:00:53]} 33. f5 {[%emt 0:03:25]} gxf5 {[%emt 0:01:00]} 34. Bg2 {[%emt 0:10:09]} Qb3 {[%emt 0:04:41]} 35. Qd5 {[%emt 0:09:51]} Qc3 {[%emt 0:03:18]} 36. Rd1 {[%emt 0:01:25]} Re7 {[%emt 0:01:07]} 37. Bf1 {[%emt 0:02:05]} Re4 {[%emt 0:01:34]} 38. Bf4 {[%emt 0:02:18]} Qxa3 {[%emt 0:01:56]} 39. Rb1 {[%emt 0:00:29]} Qa4 {[%emt 0:10:41]} 40. Be5 {[%emt 0:04:13]} Qe8 {[%emt 0:02:55]} 41. Bf6 {[%emt 0:03:48]} f4 {[%emt 0:05:55]} 42. gxf4 {[%emt 0:02:03]} Rxf4 {[%emt 0:01:00]} 43. Bd3 {[%emt 0:00:58]} Qe6 {[%emt 0:05:07]} 44. Kf1 {[%emt 0:04:56]} Qe3 {[%emt 0:01:34]} 45. Bxh7+ {[%emt 0:01:25]} Kxh7 {[%emt 0:02:16]} 46. g6+ {[%emt 0:00:17]} fxg6 {[%emt 0:01:40]} 47. Qh1+ {[%emt 0:00:09]} Kg8 {[%emt 0:00:47]} 48. Qd5+ {[%emt 0:00:07]} Qe6 {[%emt 0:02:00]} 0-1

[Event "Riga Chess Open 2020"]
[Site "Riga"]
[Date "2020.08.26"]
[Round "4.3"]
[White "Ivanovs, Viktors"]
[Black "Stabulnieks, Klavs"]
[Result "0-1"]
[ECO "B30"]
[WhiteElo "1592"]
[BlackElo "2214"]
[Annotator "ChessBase"]
[PlyCount "80"]
[EventDate "2020.08.29"]
[EventType "swiss"]
[EventCountry "LAT"]
[SourceTitle "playchess.com"]
[Source "ChessBase"]
[SourceQuality "1"]
[TimeControl "5400+30"]

1. e4 {[%emt 0:00:00]} c5 {[%emt 0:00:49]} 2. Nf3 {[%emt 0:02:01]} e6 {[%emt 0:00:05]} 3. d3 {[%emt 0:00:06]} Nc6 {[%emt 0:00:05]} 4. g3 {[%emt 0:00:13]} Nf6 {[%emt 0:00:58]} 5. Bg2 {[%emt 0:00:15]} d6 {[%emt 0:00:05]} 6. O-O {[%emt 0:00:20]} Be7 {[%emt 0:00:02]} 7. Re1 {[%emt 0:00:59]} Qc7 {[%emt 0:00:27]} 8. Qe2 {[%emt 0:01:02]} e5 {[%emt 0:04:36]} 9. h3 {[%emt 0:01:24]} O-O {[%emt 0:01:11]} 10. Nc3 {[%emt 0:02:27]} Nd4 {[%emt 0:02:15]} 11. Qd1 {[%emt 0:00:29]} Nxf3+ {[%emt 0:03:12]} 12. Qxf3 {[%emt 0:00:54]} Be6 {[%emt 0:00:04]} 13. Bg5 {[%emt 0:01:11]} Ne8 {[%emt 0:00:50]} 14. Bxe7 {[%emt 0:00:53]} Qxe7 {[%emt 0:00:05]} 15. Nd1 {[%emt 0:03:41]} g6 {[%emt 0:01:34]} 16. Ne3 {[%emt 0:02:29]} b5 {[%emt 0:04:31]} 17. c3 {[%emt 0:00:59]} Nc7 {[%emt 0:03:09]} 18. Qd1 {[%emt 0:03:05]} b4 {[%emt 0:01:23]} 19. d4 {[%emt 0:00:18]} cxd4 {[%emt 0:03:15]} 20. cxd4 {[%emt 0:00:12]} Nb5 {[%emt 0:02:00]} 21. d5 {[%emt 0:02:00]} Bd7 {[%emt 0:01:03]} 22. Rc1 {[%emt 0:03:35]} a5 {[%emt 0:05:34]} 23. Qd2 {[%emt 0:00:52]} h5 {[%emt 0:06:15]} 24. Nc4 {[%emt 0:01:29]} Nd4 {[%emt 0:03:31]} 25. f4 {[%emt 0:02:41]} Bxh3 {[%emt 0:00:54]} 26. fxe5 {[%emt 0:09:22]} dxe5 {[%emt 0:00:24]} 27. Qe3 {[%emt 0:03:21]} Bg4 {[%emt 0:01:02]} 28. Kh2 {[%emt 0:05:20]} Kg7 {[%emt 0:01:28]} 29. Rf1 {[%emt 0:03:21]} h4 {[%emt 0:02:34]} 30. d6 {[%emt 0:03:00]} Qe6 {[%emt 0:01:28]} 31. Nb6 {[%emt 0:04:50]} hxg3+ {[%emt 0:02:13]} 32. Kxg3 {[%emt 0:03:59]} Ne2+ {[%emt 0:00:21]} 33. Kf2 {[%emt 0:00:34]} Nxc1 {[%emt 0:00:38]} 34. Nxa8 {[%emt 0:06:14]} Rxa8 {[%emt 0:00:44]} 35. Rh1 {[%emt 0:03:35]} Qf6+ {[%emt 0:02:20]} 36. Ke1 {[%emt 0:01:05]} Rh8 {[%emt 0:01:50]} 37. Rxh8 {[%emt 0:04:03]} Kxh8 {[%emt 0:00:05]} 38. Bh3 {[%emt 0:02:05]} Qh4+ {[%emt 0:00:32]} 39. Kd2 {[%emt 0:02:37]} Qxh3 {[%emt 0:00:05]} 40. Qxh3+ {[%emt 0:00:46]} Bxh3 {[%emt 0:00:06]} 0-1